Workbook

Sheet yoffe-発生層以浅(絶対値)
AC1: 29 | AD1: 30 | AE1: 31 | AF1: 32 | AG1: 33 | AH1: 34 | AI1: 35
H2: 0 | I2: 0
B3: τR＞2τs | C3: の場合 | H3: =H2+1.5 -> 1.5 | I3: =1*2/(H4-H2) -> 0.6666666667
H4: =H3+1.5 -> 3 | I4: 0
B5: Dmax | C5: 1 | D5: m
B6: τs | C6: 1.4 | D6: sec
B7: τR | C7: 3.1 | D7: sec
B8: K | C8: =2/PI()/C7/C6^2 -> 0.1047761311
AC9: 0.1 | AD9: 刻み | AH9: 三角形
F10: t | G10: t/τR | H10: C1 | I10: C2 | J10: C3 | K10: C4 | L10: C5 | M10: C6 | N10: C1+C2 | O10: C1-C2+C3 | P10: C1+C3+C4 | Q10: C5+C3+C4 | R10: C4+C6 | S10: Slip-rate(t) | T10: Slip(t) | AC10: t | AD10: Slip-rate(t) | AE10: Slip(t) | AF10: Slip-input | AH10: t | AI10: Slip-rate(t)
B11: =1.8/1.3 -> 1.384615385 | D11: 0 | E11: =S11 -> 0 | F11: 0 | G11: =F11/$C$7 -> 0 | H11: =(0.5*F11+0.25*$C$7)*(F11*($C$7-F11))^0.5+(F11*$C$7-$C$7^2)*ASIN((F11/$C$7)^0.5)-0.75*$C$7^2*ATAN((($C$7-F11)/F11)^0.5) ->  | I11: =3/8*PI()*$C$7^2 -> 11.32151453 | J11: =($C$6-F11-0.5*$C$7)*((F11-$C$6)*($C$7-F11+$C$6))^0.5+$C$7*(2*$C$7-2*F11+2*$C$6)*ASIN(((F11-$C$6)/$C$7)^0.5)+1.5*$C$7^2*ATAN((($C$7-F11+$C$6)/(F11-$C$6))^0.5) ->  | K11: =(-$C$6+0.5*F11+0.25*$C$7)*((F11-2*$C$6)*($C$7-F11+2*$C$6))^0.5+$C$7*(-$C$7+F11-2*$C$6)*ASIN(((F11-2*$C$6)/$C$7)^0.5)-0.75*$C$7^2*ATAN((($C$7-F11+2*$C$6)/(F11-2*$C$6))^0.5) ->  | L11: =PI()/2*$C$7*(F11-$C$7) -> -15.0953527 | M11: =PI()/2*$C$7*(2*$C$6-F11+$C$7) -> 28.72986482 | N11: =$C$8*(H11+I11) ->  | O11: =$C$8*(H11-I11+J11) ->  | P11: =$C$8*(H11+J11+K11) ->  | Q11: =$C$8*(L11+J11+K11) ->  | R11: =$C$8*(K11+M11) ->  | S11: =IF(F11>0,IF(F11>$C$6,IF(F11>(2*$C$6),IF(F11>$C$7,IF(F11>($C$6+$C$7),IF(F11>($C$7+2*$C$6),0,R11),Q11),P11),O11),N11),0) -> 0 | T11: 0 | U11: 0 | AC11: 0 | AD11: 0 | AE11: 0 | AF11: 0 | AH11: 0 | AI11: 0
F12: =F11+0.01 -> 0.01 | G12: 0.003225806452 | H12: -11.31916771 | I12: 11.32151453 | L12: -15.04665801 | M12: 28.68117013 | N12: 0.0002458905143 | S12: 0.0002458905143 | T12: =T11+(S12+S11)*(F12-F11)/2 -> 1.229452571e-06 | U12: =U11+S12*0.01 -> 2.458905143e-06 | AB12: 1 | AC12: 0.1 | AD12: 0.007753072143 | AE12: 0.0003113155773 | AF12: 0.0007753072143 | AG12: 1 | AH12: 0.1 | AI12: 0.007753072143
B13: =3.5/1.3 -> 2.692307692 | F13: =F12+0.01 -> 0.02 | G13: 0.006451612903 | H13: -11.31487887 | I13: 11.32151453 | L13: -14.99796333 | M13: 28.63247544 | N13: 0.0006952587451 | S13: 0.0006952587451 | T13: 5.935198868e-06 | U13: 9.411492594e-06 | AB13: 2 | AC13: 0.2 | AD13: 0.02185727944 | AE13: 0.001753159706 | AF13: 0.002185727944 | AG13: 2 | AH13: 0.2 | AI13: 0
F14: 0.03 | G14: 0.009677419355 | H14: -11.30932798 | I14: 11.32151453 | L14: -14.94926864 | M14: 28.58378076 | N14: 0.001276858869 | S14: 0.001276858869 | T14: 1.579578694e-05 | U14: 2.218008129e-05 | AB14: 3 | AC14: 0.3 | AD14: 0.04002167567 | AE14: 0.004817828864 | AF14: 0.004002167567 | AG14: 3 | AH14: 0.1 | AI14: 0
F15: 0.04 | G15: 0.01290322581 | H15: -11.30275819 | I15: 11.32151453 | L15: -14.90057396 | M15: 28.53508607 | N15: 0.001965216528 | S15: 0.001965216528 | T15: 3.200616393e-05 | U15: 4.183224656e-05 | AB15: 4 | AC15: 0.4 | AD15: 0.06141157017 | AE15: 0.009865221405 | AF15: 0.006141157017 | AG15: 4 | AH15: 0.2 | AI15: 0.02185727944
D16: =D11+E16*0.05 -> 0.0001372791855 | E16: =S16 -> 0.00274558371 | F16: 0.05 | G16: 0.01612903226 | H16: -11.29531024 | I16: 11.32151453 | L16: -14.85187927 | M16: 28.48639139 | N16: 0.00274558371 | S16: 0.00274558371 | T16: 5.556016511e-05 | U16: 6.928808366e-05 | AB16: 5 | AC16: 0.5 | AD16: 0.08553544983 | AE16: 0.01719157453 | AF16: 0.008553544983 | AG16: 5 | AH16: 0.3 | AI16: 0
F17: 0.06 | G17: 0.01935483871 | H17: -11.28707927 | I17: 11.32151453 | L17: -14.80318458 | M17: 28.4376967 | N17: 0.003607992918 | S17: 0.003607992918 | T17: 8.732804825e-05 | U17: 0.0001053680128 | AB17: 6 | AC17: 0.6 | AD17: 0.1120553365 | AE17: 0.02705248837 | AF17: 0.01120553365 | AG17: 6 | AH17: 0.2 | AI17: 0
F18: 0.07 | G18: 0.02258064516 | H18: -11.27813523 | I18: 11.32151453 | L18: -14.7544899 | M18: 28.38900201 | N18: 0.004545114564 | S18: 0.004545114564 | T18: 0.0001280935857 | U18: 0.0001508191585 | AB18: 7 | AC18: 0.7 | AD18: 0.1407182273 | AE18: 0.03967437606 | AF18: 0.01407182273 | AG18: 7 | AH18: 0.3 | AI18: 0.04002167567
F19: 0.08 | G19: 0.02580645161 | H19: -11.26853242 | I19: 11.32151453 | L19: -14.70579521 | M19: 28.34030733 | N19: 0.005551260195 | S19: 0.005551260195 | T19: 0.0001785754595 | U19: 0.0002063317604 | AB19: 8 | AC19: 0.8 | AD19: 0.1713240978 | AE19: 0.05526118534 | AF19: 0.01713240978 | AG19: 8 | AH19: 0.4 | AI19: 0
F20: 0.09 | G20: 0.02903225806 | H20: -11.25831458 | I20: 11.32151453 | L20: -14.65710053 | M20: 28.29161264 | N20: 0.006621845615 | S20: 0.006621845615 | T20: 0.0002394409885 | U20: 0.0002725502166 | AB20: 9 | AC20: 0.9 | AD20: 0.2037086106 | AE20: 0.07399875274 | AF20: 0.02037086106 | AG20: 9 | AH20: 0.3 | AI20: 0
D21: =D16+E21*0.05 -> 0.0005249327926 | E21: =S21 -> 0.007753072143 | F21: 0.1 | G21: 0.03225806452 | H21: -11.24751798 | I21: 11.32151453 | L21: -14.60840584 | M21: 28.24291796 | N21: 0.007753072143 | S21: 0.007753072143 | T21: 0.0003113155773 | U21: 0.000350080938 | AB21: 10 | AC21: 1 | AD21: 0.2377328126 | AE21: 0.0960578167 | AF21: 0.02377328126 | AG21: 10 | AH21: 0.4 | AI21: 0.06141157017
F22: 0.11 | G22: 0.03548387097 | H22: -11.2361733 | I22: 11.32151453 | L22: -14.55971115 | M22: 28.19422327 | N22: 0.008941723679 | S22: 0.008941723679 | T22: 0.0003947895564 | U22: 0.0004394981748 | AB22: 11 | AC22: 1.1 | AD22: 0.273276547 | AE22: 0.121596204 | AF22: 0.0273276547 | AG22: 11 | AH22: 0.5 | AI22: 0
F23: 0.12 | G23: 0.03870967742 | H23: -11.22430698 | I23: 11.32151453 | L23: -14.51101647 | M23: 28.14552858 | N23: 0.01018503046 | S23: 0.01018503046 | T23: 0.0004904233271 | U23: 0.0005413484794 | AB23: 12 | AC23: 1.2 | AD23: 0.3102340084 | AE23: 0.1507604737 | AF23: 0.03102340084 | AG23: 12 | AH23: 0.4 | AI23: 0
F24: 0.13 | G24: 0.04193548387 | H24: -11.21194211 | I24: 11.32151453 | L24: -14.46232178 | M24: 28.0968339 | N24: 0.01148057369 | S24: 0.01148057369 | T24: 0.0005987513479 | U24: 0.0006561542163 | AB24: 13 | AC24: 1.3 | AD24: 0.3485106124 | AE24: 0.1836871872 | AF24: 0.03485106124 | AG24: 13 | AH24: 0.5 | AI24: 0.08553544983
F25: 0.14 | G25: 0.04516129032 | H25: -11.19909908 | I25: 11.32151453 | L25: -14.41362709 | M25: 28.04813921 | N25: 0.01282621653 | S25: 0.01282621653 | T25: 0.000720285299 | U25: 0.0007844163816 | AB25: 14 | AC25: 1.4 | AD25: 0.3880207111 | AE25: 0.2205039104 | AF25: 0.03880207111 | AG25: 14 | AH25: 0.6 | AI25: 0
D26: =D21+E26*0.05 -> 0.001235935429 | E26: =S26 -> 0.01422005273 | F26: 0.15 | G26: 0.04838709677 | H26: -11.18579609 | I26: 11.32151453 | L26: -14.36493241 | M26: 27.99944453 | N26: 0.01422005273 | S26: 0.01422005273 | T26: 0.0008555166453 | U26: 0.0009266169089 | AB26: 15 | AC26: 1.5 | AD26: 0.4131797301 | AE26: 0.2607073865 | AF26: 0.04131797301 | AG26: 15 | AH26: 0.5 | AI26: 0
F27: 0.16 | G27: 0.05161290323 | H27: -11.1720495 | I27: 11.32151453 | L27: -14.31623772 | M27: 27.95074984 | N27: 0.01566036747 | S27: 0.01566036747 | T27: 0.001004918746 | U27: 0.001083220584 | AB27: 16 | AC27: 1.6 | AD27: 0.4267190029 | AE27: 0.3027710252 | AF27: 0.04267190029 | AG27: 16 | AH27: 0.6 | AI27: 0.1120553365
F28: 0.17 | G28: 0.05483870968 | H28: -11.15787414 | I28: 11.32151453 | L28: -14.26754304 | M28: 27.90205515 | N28: 0.01714560698 | S28: 0.01714560698 | T28: 0.001168948618 | U28: 0.001254676653 | AB28: 17 | AC28: 1.7 | AD28: 0.4331527186 | AE28: 0.3458150645 | AF28: 0.04331527186 | AG28: 17 | AH28: 0.7 | AI28: 0
F29: 0.18 | G29: 0.05806451613 | H29: -11.14328353 | I29: 11.32151453 | L29: -14.21884835 | M29: 27.85336047 | N29: 0.0186743545 | S29: 0.0186743545 | T29: 0.001348048426 | U29: 0.001441420198 | AB29: 18 | AC29: 1.8 | AD29: 0.434086537 | AE29: 0.389217974 | AF29: 0.0434086537 | AG29: 18 | AH29: 0.6 | AI29: 0
F30: 0.19 | G30: 0.06129032258 | H30: -11.12829007 | I30: 11.32151453 | L30: -14.17015366 | M30: 27.80466578 | N30: 0.020245311 | S30: 0.020245311 | T30: 0.001542646753 | U30: 0.001643873308 | AB30: 19 | AC30: 1.9 | AD30: 0.4304430317 | AE30: 0.4324793423 | AF30: 0.04304430317 | AG30: 19 | AH30: 0.7 | AI30: 0.1407182273
D31: =D26+E31*0.05 -> 0.002328799401 | E31: =S31 -> 0.02185727944 | F31: 0.2 | G31: 0.06451612903 | H31: -11.11290519 | I31: 11.32151453 | L31: -14.12145898 | M31: 27.75597109 | N31: 0.02185727944 | S31: 0.02185727944 | T31: 0.001753159706 | U31: 0.001862446103 | AB31: 20 | AC31: 2 | AD31: 0.4228403645 | AE31: 0.4751741246 | AF31: 0.04228403645 | AG31: 20 | AH31: 0.8 | AI31: 0
F32: 0.21 | G32: 0.06774193548 | H32: -11.09713945 | I32: 11.32151453 | L32: -14.07276429 | M32: 27.70727641 | N32: 0.02350915196 | S32: 0.02350915196 | T32: 0.001979991863 | U32: 0.002097537622 | AB32: 21 | AC32: 2.1 | AD32: 0.4117288646 | AE32: 0.5169299804 | AF32: 0.04117288646 | AG32: 21 | AH32: 0.7 | AI32: 0
F33: 0.22 | G33: 0.07096774194 | H33: -11.08100269 | I33: 11.32151453 | L33: -14.02406961 | M33: 27.65858172 | N33: 0.0251998991 | S33: 0.0251998991 | T33: 0.002223537118 | U33: 0.002349536613 | AB33: 22 | AC33: 2.2 | AD33: 0.3974545247 | AE33: 0.5574140177 | AF33: 0.03974545247 | AG33: 22 | AH33: 0.8 | AI33: 0.1713240978
F34: 0.23 | G34: 0.07419354839 | H34: -11.06450407 | I34: 11.32151453 | L34: -13.97537492 | M34: 27.60988704 | N34: 0.02692856081 | S34: 0.02692856081 | T34: 0.002484179417 | U34: 0.002618822222 | AB34: 23 | AC34: 2.3 | AD34: 0.3802931053 | AE34: 0.5963242222 | AF34: 0.03802931053 | AG34: 23 | AH34: 0.9 | AI34: 0
F35: 0.24 | G35: 0.07741935484 | H35: -11.04765216 | I35: 11.32151453 | L35: -13.92668023 | M35: 27.56119235 | N35: 0.02869423884 | S35: 0.02869423884 | T35: 0.002762293416 | U35: 0.00290576461 | AB35: 24 | AC35: 2.4 | AD35: 0.3604702552 | AE35: 0.6333835214 | AF35: 0.03604702552 | AG35: 24 | AH35: 0.8 | AI35: 0
D36: =D31+E36*0.05 -> 0.003853603915 | E36: =S36 -> 0.03049609029 | F36: 0.25 | G36: 0.08064516129 | H36: -11.03045501 | I36: 11.32151453 | L36: -13.87798555 | M36: 27.51249766 | N36: 0.03049609029 | S36: 0.03049609029 | T36: 0.003058245061 | U36: 0.003210725513 | AB36: 25 | AC36: 2.5 | AD36: 0.3381741569 | AE36: 0.6683354512 | AF36: 0.03381741569 | AG36: 25 | AH36: 0.9 | AI36: 0.2037086106
F37: 0.26 | G37: 0.08387096774 | H37: -11.01292018 | I37: 11.32151453 | L37: -13.82929086 | M37: 27.46380298 | N37: 0.03233332196 | S37: 0.03233332196 | T37: 0.003372392123 | U37: 0.003534058732 | AB37: 26 | AC37: 2.6 | AD37: 0.3135637967 | AE37: 0.7009408508 | AF37: 0.03135637967 | AG37: 26 | AH37: 1 | AI37: 0
F38: 0.27 | G38: 0.08709677419 | H38: -10.99505481 | I38: 11.32151453 | L38: -13.78059617 | M38: 27.41510829 | N38: 0.03420518562 | S38: 0.03420518562 | T38: 0.00370508466 | U38: 0.003876110589 | AB38: 27 | AC38: 2.7 | AD38: 0.2867744301 | AE38: 0.7309752358 | AF38: 0.02867744301 | AG38: 27 | AH38: 0.9 | AI38: 0
F39: 0.28 | G39: 0.09032258065 | H39: -10.97686567 | I39: 11.32151453 | L39: -13.73190149 | M39: 27.36641361 | N39: 0.03611097376 | S39: 0.03611097376 | T39: 0.004056665457 | U39: 0.004237220326 | AB39: 28 | AC39: 2.8 | AD39: 0.257921019 | AE39: 0.7582266116 | AF39: 0.0257921019 | AG39: 28 | AH39: 1 | AI39: 0.2377328126
F40: 0.29 | G40: 0.0935483871 | H40: -10.95835914 | I40: 11.32151453 | L40: -13.6832068 | M40: 27.31771892 | N40: 0.03805001595 | S40: 0.03805001595 | T40: 0.004427470406 | U40: 0.004617720486 | AB40: 29 | AC40: 2.9 | AD40: 0.2348529044 | AE40: 0.7828048556 | AF40: 0.02348529044 | AG40: 29 | AH40: 1.1 | AI40: 0
D41: =D36+E41*0.05 -> 0.005854687699 | E41: =S41 -> 0.04002167567 | F41: 0.3 | G41: 0.09677419355 | H41: -10.93954131 | I41: 11.32151453 | L41: -13.63451212 | M41: 27.26902423 | N41: 0.04002167567 | S41: 0.04002167567 | T41: 0.004817828864 | U41: 0.005017937242 | AB41: 30 | AC41: 3 | AD41: 0.2162447715 | AE41: 0.8053364115 | AF41: 0.02162447715 | AG41: 30 | AH41: 1 | AI41: 0
F42: 0.31 | G42: 0.1 | H42: -10.92041795 | I42: 11.32151453 | L42: -13.58581743 | M42: 27.22032955 | N42: 0.0420253474 | S42: 0.0420253474 | T42: 0.005228063979 | U42: 0.005438190716 | AB42: 31 | AC42: 3.1 | AD42: 0.1998540256 | AE42: 0.8261272062 | AF42: 0.01998540256 | AG42: 31 | AH42: 1.1 | AI42: 0.273276547
F43: 0.32 | G43: 0.1032258065 | H43: -10.90099457 | I43: 11.32151453 | L43: -13.53712274 | M43: 27.17163486 | N43: 0.04406045416 | S43: 0.04406045416 | T43: 0.005658492987 | U43: 0.005878795258 | AB43: 32 | AC43: 3.2 | AD43: 0.1848371135 | AE43: 0.8453526788 | AF43: 0.01848371135 | AG43: 32 | AH43: 1.2 | AI43: 0
F44: 0.33 | G44: 0.1064516129 | H44: -10.88127642 | I44: 11.32151453 | L44: -13.48842806 | M44: 27.12294017 | N44: 0.04612644524 | S44: 0.04612644524 | T44: 0.006109427484 | U44: 0.00634005971 | AB44: 33 | AC44: 3.3 | AD44: 0.1707728933 | AE44: 0.863126393 | AF44: 0.01707728933 | AG44: 33 | AH44: 1.1 | AI44: 0
F45: 0.34 | G45: 0.1096774194 | H45: -10.86126853 | I45: 11.32151453 | L45: -13.43973337 | M45: 27.07424549 | N45: 0.04822279425 | S45: 0.04822279425 | T45: 0.006581173682 | U45: 0.006822287653 | AB45: 34 | AC45: 3.4 | AD45: 0.1574389757 | AE45: 0.879531638 | AF45: 0.01574389757 | AG45: 34 | AH45: 1.2 | AI45: 0.3102340084
D46: =D41+E46*0.05 -> 0.008372137563 | E46: =S46 -> 0.05034899728 | F46: 0.35 | G46: 0.1129032258 | H46: -10.84097572 | I46: 11.32151453 | L46: -13.39103869 | M46: 27.0255508 | N46: 0.05034899728 | S46: 0.05034899728 | T46: 0.007074032639 | U46: 0.007325777626 | AB46: 35 | AC46: 3.5 | AD46: 0.1446937113 | AE46: 0.8946338551 | AF46: 0.01446937113 | AG46: 35 | AH46: 1.3 | AI46: 0
F47: 0.36 | G47: 0.1161290323 | H47: -10.82040258 | I47: 11.32151453 | L47: -13.342344 | M47: 26.97685612 | N47: 0.05250457129 | S47: 0.05250457129 | T47: 0.007588300482 | U47: 0.007850823339 | AB47: 36 | AC47: 3.6 | AD47: 0.132445188 | AE47: 0.9084869853 | AF47: 0.0132445188 | AG47: 36 | AH47: 1.2 | AI47: 0
F48: 0.37 | G48: 0.1193548387 | H48: -10.79955354 | I48: 11.32151453 | L48: -13.29364931 | M48: 26.92816143 | N48: 0.05468905271 | S48: 0.05468905271 | T48: 0.008124268602 | U48: 0.008397713866 | AB48: 37 | AC48: 3.7 | AD48: 0.1206348962 | AE48: 0.9211375475 | AF48: 0.01206348962 | AG48: 37 | AH48: 1.3 | AI48: 0.3485106124
F49: 0.38 | G49: 0.1225806452 | H49: -10.77843286 | I49: 11.32151453 | L49: -13.24495463 | M49: 26.87946674 | N49: 0.05690199606 | S49: 0.05690199606 | T49: 0.008682223846 | U49: 0.008966733826 | AB49: 38 | AC49: 3.8 | AD49: 0.1092283985 | AE49: 0.9326274716 | AF49: 0.01092283985 | AG49: 38 | AH49: 1.4 | AI49: 0
F50: 0.39 | G50: 0.1258064516 | H50: -10.75704462 | I50: 11.32151453 | L50: -13.19625994 | M50: 26.83077206 | N50: 0.05914297278 | S50: 0.05914297278 | T50: 0.00926244869 | U50: 0.009558163554 | AB50: 39 | AC50: 3.9 | AD50: 0.09820980028 | AE50: 0.9429962053 | AF50: 0.009820980028 | AG50: 39 | AH50: 1.3 | AI50: 0
D51: =D46+E51*0.05 -> 0.01144271607 | E51: =S51 -> 0.06141157017 | F51: 0.4 | G51: 0.1290322581 | H51: -10.73539277 | I51: 11.32151453 | L51: -13.14756526 | M51: 26.78207737 | N51: 0.06141157017 | S51: 0.06141157017 | T51: 0.009865221405 | U51: 0.01017227926 | AB51: 40 | AC51: 4 | AD51: 0.08757854476 | AE51: 0.9522823927 | AF51: 0.008757854476 | AG51: 40 | AH51: 1.4 | AI51: 0.3880207111
F52: 0.41 | G52: 0.1322580645 | H52: -10.7134811 | I52: 11.32151453 | L52: -13.09887057 | M52: 26.73338269 | N52: 0.06370739036 | S52: 0.06370739036 | T52: 0.01049081621 | U52: 0.01080935316 | AB52: 41 | AC52: 4.1 | AD52: 0.07734787403 | AE52: 0.9605253189 | AF52: 0.007734787403 | AG52: 41 | AH52: 1.5 | AI52: 0
F53: 0.42 | G53: 0.135483871 | H53: -10.69131327 | I53: 11.32151453 | L53: -13.05017588 | M53: 26.684688 | N53: 0.06603004942 | S53: 0.06603004942 | T53: 0.01113950341 | U53: 0.01146965365 | AB53: 42 | AC53: 4.2 | AD53: 0.06754480826 | AE53: 0.9677662754 | AF53: 0.006754480826 | AG53: 42 | AH53: 1.4 | AI53: 0
F54: 0.43 | G54: 0.1387096774 | H54: -10.66889283 | I54: 11.32151453 | L54: -13.0014812 | M54: 26.63599331 | N54: 0.06837917653 | S54: 0.06837917653 | T54: 0.01181154954 | U54: 0.01215344542 | AB54: 43 | AC54: 4.3 | AD54: 0.05821210012 | AE54: 0.974050015 | AF54: 0.005821210012 | AG54: 43 | AH54: 1.5 | AI54: 0.4131797301
F55: 0.44 | G55: 0.1419354839 | H55: -10.64622319 | I55: 11.32151453 | L55: -12.95278651 | M55: 26.58729863 | N55: 0.07075441322 | S55: 0.07075441322 | T55: 0.01250721748 | U55: 0.01286098955 | AB55: 44 | AC55: 4.4 | AD55: 0.04941412662 | AE55: 0.97942657 | AF55: 0.004941412662 | AH55: 1.6 | AI55: 0
D56: =D51+E56*0.05 -> 0.0151004867 | E56: =S56 -> 0.07315541266 | F56: 0.45 | G56: 0.1451612903 | H56: -10.62330767 | I56: 11.32151453 | L56: -12.90409182 | M56: 26.53860394 | N56: 0.07315541266 | S56: 0.07315541266 | T56: 0.01322676661 | U56: 0.01359254368 | AB56: 45 | AC56: 4.5 | AD56: 0.04125729441 | AE56: 0.9839541862 | AF56: 0.004125729441 | AH56: 1.5 | AI56: 0
F57: 0.46 | G57: 0.1483870968 | H57: -10.60014948 | I57: 11.32151453 | L57: -12.85539714 | M57: 26.48990926 | N57: 0.07558183903 | S57: 0.07558183903 | T57: 0.01397045287 | U57: 0.01434836207 | AB57: 46 | AC57: 4.6 | AD57: 0.03395049363 | AE57: 0.9877069829 | AF57: 0.003395049363 | AH57: 1.6 | AI57: 0.4267190029
F58: 0.47 | G58: 0.1516129032 | H58: -10.5767517 | I58: 11.32151453 | L58: -12.80670245 | M58: 26.44121457 | N58: 0.07803336689 | S58: 0.07803336689 | T58: 0.0147385289 | U58: 0.01512869574 | AB58: 47 | AC58: 4.7 | AD58: 0.02753433948 | AE58: 0.9907741187 | AF58: 0.002753433948 | AH58: 1.7 | AI58: 0
F59: 0.48 | G59: 0.1548387097 | H59: -10.55311737 | I59: 11.32151453 | L59: -12.75800777 | M59: 26.39251988 | N59: 0.08050968067 | S59: 0.08050968067 | T59: 0.01553124414 | U59: 0.01593379254 | AB59: 48 | AC59: 4.8 | AD59: 0.02195103757 | AE59: 0.993241749 | AF59: 0.002195103757 | AH59: 1.6 | AI59: 0
F60: 0.49 | G60: 0.1580645161 | H60: -10.5292494 | I60: 11.32151453 | L60: -12.70931308 | M60: 26.3438252 | N60: 0.08301047411 | S60: 0.08301047411 | T60: 0.01634884491 | U60: 0.01676389728 | AB60: 49 | AC60: 4.9 | AD60: 0.01714491108 | AE60: 0.9951903598 | AF60: 0.001714491108 | AH60: 1.7 | AI60: 0.4331527186
D61: =D56+E61*0.05 -> 0.0193772592 | E61: =S61 -> 0.08553544983 | F61: 0.5 | G61: 0.1612903226 | H61: -10.50515064 | I61: 11.32151453 | L61: -12.66061839 | M61: 26.29513051 | N61: 0.08553544983 | S61: 0.08553544983 | T61: 0.01719157453 | U61: 0.01761925178 | AB61: 50 | AC61: 5 | AD61: 0.01306190388 | AE61: 0.9966949545 | AF61: 0.001306190388 | AH61: 1.8 | AI61: 0
F62: 0.51 | G62: 0.164516129 | H62: -10.48082383 | I62: 11.32151453 | L62: -12.61192371 | M62: 26.24643582 | N62: 0.08808431885 | S62: 0.08808431885 | T62: 0.01805967338 | U62: 0.01850009497 | AB62: 51 | AC62: 5.1 | AD62: 0.009649102143 | AE62: 0.9978251918 | AF62: 0.0009649102143 | AH62: 1.7 | AI62: 0
F63: 0.52 | G63: 0.1677419355 | H63: -10.45627166 | I63: 11.32151453 | L63: -12.56322902 | M63: 26.19774114 | N63: 0.0906568002 | S63: 0.0906568002 | T63: 0.01895337897 | U63: 0.01940666297 | AB63: 52 | AC63: 5.2 | AD63: 0.006854247871 | AE63: 0.998645476 | AF63: 0.0006854247871 | AH63: 1.8 | AI63: 0.434086537
F64: 0.53 | G64: 0.1709677419 | H64: -10.43149674 | I64: 11.32151453 | L64: -12.51453434 | M64: 26.14904645 | N64: 0.09325262052 | S64: 0.09325262052 | T64: 0.01987292608 | U64: 0.02033918918 | AB64: 53 | AC64: 5.3 | AD64: 0.004625210092 | AE64: 0.9992149967 | AF64: 0.0004625210092 | AH64: 1.9 | AI64: 0
F65: 0.54 | G65: 0.1741935484 | H65: -10.4065016 | I65: 11.32151453 | L65: -12.46583965 | M65: 26.10035177 | N65: 0.09587151372 | S65: 0.09587151372 | T65: 0.02081854675 | U65: 0.02129790432 | AB65: 54 | AC65: 5.4 | AD65: 0.002909364464 | AE65: 0.9995877113 | AF65: 0.0002909364464 | AH65: 1.8 | AI65: 0
D66: =D61+E66*0.05 -> 0.02430292023 | E66: =S66 -> 0.09851322064 | F66: 0.55 | G66: 0.1774193548 | H66: -10.38128874 | I66: 11.32151453 | L66: -12.41714496 | M66: 26.05165708 | N66: 0.09851322064 | S66: 0.09851322064 | T66: 0.02179047042 | U66: 0.02228303652 | AB66: 55 | AC66: 5.5 | AD66: 0.001652797768 | AE66: 0.999812258 | AF66: 0.0001652797768 | AH66: 1.9 | AI66: 0.4304430317
F67: 0.56 | G67: 0.1806451613 | H67: -10.35586054 | I67: 11.32151453 | L67: -12.36845028 | M67: 26.00296239 | N67: 0.1011774887 | S67: 0.1011774887 | T67: 0.02278892397 | U67: 0.02329481141 | AB67: 56 | AC67: 5.6 | AD67: 0.0007991759172 | AE67: 0.999931774 | AF67: 7.991759172e-05 | AH67: 2 | AI67: 0
F68: 0.57 | G68: 0.1838709677 | H68: -10.33021936 | I68: 11.32151453 | L68: -12.31975559 | M68: 25.95426771 | N68: 0.1038640717 | S68: 0.1038640717 | T68: 0.02381413177 | U68: 0.02433345213 | AB68: 57 | AC68: 5.7 | AD68: 0.0002879075248 | AE68: 0.9999835701 | AF68: 2.879075248e-05 | AH68: 1.9 | AI68: 0
F69: 0.58 | G69: 0.1870967742 | H69: -10.30436751 | I69: 11.32151453 | L69: -12.2710609 | M69: 25.90557302 | N69: 0.1065727293 | S69: 0.1065727293 | T69: 0.02486631577 | U69: 0.02539917942 | AB69: 58 | AC69: 5.8 | AD69: 5.053388885e-05 | AE69: 0.9999985479 | AF69: 5.053388885e-06 | AH69: 2 | AI69: 0.4228403645
F70: 0.59 | G70: 0.1903225806 | H70: -10.2783072 | I70: 11.32151453 | L70: -12.22236622 | M70: 25.85687834 | N70: 0.1093032273 | S70: 0.1093032273 | T70: 0.02594569556 | U70: 0.02649221169 | AB70: 59 | AC70: 5.9 | AD70: -2.50508493e-23 | AE70: 1 | AF70: -2.50508493e-24 | AH70: 2.1 | AI70: 0
D71: =D66+E71*0.05 -> 0.02990568705 | E71: =S71 -> 0.1120553365 | F71: 0.6 | G71: 0.1935483871 | H71: -10.25204063 | I71: 11.32151453 | L71: -12.17367153 | M71: 25.80818365 | N71: 0.1120553365 | S71: 0.1120553365 | T71: 0.02705248837 | U71: 0.02761276506 | AB71: 60 | AC71: 6 | AD71: 0 | AE71: 1 | AF71: 0 | AH71: 2 | AI71: 0
F72: 0.61 | G72: 0.1967741935 | H72: -10.22556994 | I72: 11.32151453 | L72: -12.12497685 | M72: 25.75948896 | N72: 0.1148288336 | S72: 0.1148288336 | T72: 0.02818690923 | U72: 0.02876105339 | AB72: 61 | AC72: 6.1 | AD72: 0 | AE72: 1 | AF72: 0 | AH72: 2.1 | AI72: 0.4117288646
F73: 0.62 | G73: 0.2 | H73: -10.1988972 | I73: 11.32151453 | L73: -12.07628216 | M73: 25.71079428 | N73: 0.1176234999 | S73: 0.1176234999 | T73: 0.02934917089 | U73: 0.02993728839 | AB73: 62 | AC73: 6.2 | AD73: 0 | AE73: 1 | AF73: 0 | AH73: 2.2 | AI73: 0
F74: 0.63 | G74: 0.2032258065 | H74: -10.17202446 | I74: 11.32151453 | L74: -12.02758747 | M74: 25.66209959 | N74: 0.1204391218 | S74: 0.1204391218 | T74: 0.030539484 | U74: 0.03114167961 | AB74: 63 | AC74: 6.3 | AD74: 0 | AE74: 1 | AF74: 0 | AH74: 2.1 | AI74: 0
F75: 0.64 | G75: =F75/$C$7 -> 0.2064516129 | H75: =(0.5*F75+0.25*$C$7)*(F75*($C$7-F75))^0.5+(F75*$C$7-$C$7^2)*ASIN((F75/$C$7)^0.5)-0.75*$C$7^2*ATAN((($C$7-F75)/F75)^0.5) -> -10.14495371 | I75: =3/8*PI()*$C$7^2 -> 11.32151453 | J75: =($C$6-F75-0.5*$C$7)*((F75-$C$6)*($C$7-F75+$C$6))^0.5+$C$7*(2*$C$7-2*F75+2*$C$6)*ASIN(((F75-$C$6)/$C$7)^0.5)+1.5*$C$7^2*ATAN((($C$7-F75+$C$6)/(F75-$C$6))^0.5) ->  | K75: =(-$C$6+0.5*F75+0.25*$C$7)*((F75-2*$C$6)*($C$7-F75+2*$C$6))^0.5+$C$7*(-$C$7+F75-2*$C$6)*ASIN(((F75-2*$C$6)/$C$7)^0.5)-0.75*$C$7^2*ATAN((($C$7-F75+2*$C$6)/(F75-2*$C$6))^0.5) ->  | L75: =PI()/2*$C$7*(F75-$C$7) -> -11.97889279 | M75: =PI()/2*$C$7*(2*$C$6-F75+$C$7) -> 25.6134049 | N75: =$C$8*(H75+I75) -> 0.1232754904 | O75: =$C$8*(H75-I75+J75) ->  | P75: =$C$8*(H75+J75+K75) ->  | Q75: =$C$8*(L75+J75+K75) ->  | R75: =$C$8*(K75+M75) ->  | S75: =IF(F75>0,IF(F75>$C$6,IF(F75>(2*$C$6),IF(F75>$C$7,IF(F75>($C$6+$C$7),IF(F75>($C$7+2*$C$6),0,R75),Q75),P75),O75),N75),0) -> 0.1232754904 | T75: 0.03175805706 | U75: 0.03237443451 | AB75: 64 | AC75: 6.4 | AD75: 0 | AE75: 1 | AF75: 0 | AH75: 2.2 | AI75: 0.3974545247
D76: =D71+E76*0.05 -> 0.03621230711 | E76: =S76 -> 0.1261324012 | F76: 0.65 | G76: 0.2096774194 | H76: -10.1176869 | I76: 11.32151453 | L76: -11.9301981 | M76: 25.56471022 | N76: 0.1261324012 | S76: 0.1261324012 | T76: =T75+(S76+S75)*(F76-F75)/2 -> 0.03300509652 | U76: =U75+S76*0.01 -> 0.03363575852 | AB76: 65 | AC76: 6.5 | AD76: 0 | AE76: 1 | AF76: 0 | AH76: 2.3 | AI76: 0
F77: =F76+0.01 -> 0.66 | G77: 0.2129032258 | H77: -10.09022594 | I77: 11.32151453 | L77: -11.88150342 | M77: 25.51601553 | N77: 0.1290096541 | S77: 0.1290096541 | T77: 0.03428080679 | U77: 0.03492585507 | AB77: 66 | AC77: 6.6 | AD77: 0 | AE77: 1 | AF77: 0 | AH77: 2.2 | AI77: 0
F78: 0.67 | G78: 0.2161290323 | H78: -10.06257271 | I78: 11.32151453 | L78: -11.83280873 | M78: 25.46732085 | N78: 0.1319070532 | S78: 0.1319070532 | T78: 0.03558539033 | U78: 0.0362449256 | AB78: 67 | AC78: 6.7 | AD78: 0 | AE78: 1 | AF78: 0 | AH78: 2.3 | AI78: 0.3802931053
F79: 0.68 | G79: 0.2193548387 | H79: -10.03472902 | I79: 11.32151453 | L79: -11.78411404 | M79: 25.41862616 | N79: 0.1348244065 | S79: 0.1348244065 | T79: 0.03691904763 | U79: 0.03759316966 | AB79: 68 | AC79: 6.8 | AD79: 0 | AE79: 1 | AF79: 0 | AH79: 2.4 | AI79: 0
F80: 0.69 | G80: 0.2225806452 | H80: -10.00669669 | I80: 11.32151453 | L80: -11.73541936 | M80: 25.36993147 | N80: 0.137761526 | S80: 0.137761526 | T80: 0.03828197729 | U80: 0.03897078492 | AB80: 69 | AC80: 6.9 | AD80: 0 | AE80: 1 | AF80: 0 | AH80: 2.3 | AI80: 0
D81: =D76+E81*0.05 -> 0.04324821848 | E81: =S81 -> 0.1407182273 | F81: 0.7 | G81: 0.2258064516 | H81: -9.978477463 | I81: 11.32151453 | L81: -11.68672467 | M81: 25.32123679 | N81: 0.1407182273 | S81: 0.1407182273 | T81: 0.03967437606 | U81: 0.04037796719 | AC81: 7 | AD81: 0 | AE81: 1 | AF81: 0 | AH81: 2.4 | AI81: 0.3604702552
F82: 0.71 | G82: 0.2290322581 | H82: -9.95007307 | I82: 11.32151453 | L82: -11.63802999 | M82: 25.2725421 | N82: 0.1436943297 | S82: 0.1436943297 | T82: 0.04109643884 | U82: 0.04181491049 | AC82: 7.1 | AD82: 0 | AE82: 1 | AF82: 0 | AH82: 2.5 | AI82: 0
F83: 0.72 | G83: 0.2322580645 | H83: -9.921485203 | I83: 11.32151453 | L83: -11.5893353 | M83: 25.22384742 | N83: 0.1466896558 | S83: 0.1466896558 | T83: 0.04254835877 | U83: 0.04328180705 | AC83: 7.2 | AD83: 0 | AE83: 1 | AF83: 0 | AH83: 2.4 | AI83: 0
F84: 0.73 | G84: 0.235483871 | H84: -9.892715521 | I84: 11.32151453 | L84: -11.54064061 | M84: 25.17515273 | N84: 0.1497040317 | S84: 0.1497040317 | T84: 0.04403032721 | U84: 0.04477884737 | AC84: 7.3 | AD84: 0 | AE84: 1 | AF84: 0 | AH84: 2.5 | AI84: 0.3381741569
F85: 0.74 | G85: 0.2387096774 | H85: -9.863765654 | I85: 11.32151453 | L85: -11.49194593 | M85: 25.12645804 | N85: 0.1527372868 | S85: 0.1527372868 | T85: 0.0455425338 | U85: 0.04630622023 | AC85: 7.4 | AD85: 0 | AE85: 1 | AF85: 0 | AH85: 2.6 | AI85: 0
E86: =S86 -> 0.1557892533 | F86: 0.75 | G86: 0.2419354839 | H86: -9.834637202 | I86: 11.32151453 | L86: -11.44325124 | M86: 25.07776336 | N86: 0.1557892533 | S86: 0.1557892533 | T86: 0.0470851665 | U86: 0.04786411277 | AC86: 7.5 | AD86: 0 | AE86: 1 | AF86: 0 | AH86: 2.5 | AI86: 0
F87: 0.76 | G87: 0.2451612903 | H87: -9.805331735 | I87: 11.32151453 | L87: -11.39455655 | M87: 25.02906867 | N87: 0.1588597667 | S87: 0.1588597667 | T87: 0.0486584116 | U87: 0.04945271044 | AC87: 7.6 | AD87: 0 | AE87: 1 | AF87: 0 | AH87: 2.6 | AI87: 0.3135637967
F88: 0.77 | G88: 0.2483870968 | H88: -9.775850797 | I88: 11.32151453 | L88: -11.34586187 | M88: 24.98037399 | N88: 0.1619486654 | S88: 0.1619486654 | T88: 0.05026245376 | U88: 0.05107219709 | AC88: 7.7 | AD88: 0 | AE88: 1 | AF88: 0 | AH88: 2.7 | AI88: 0
F89: 0.78 | G89: 0.2516129032 | H89: -9.746195903 | I89: 11.32151453 | L89: -11.29716718 | M89: 24.9316793 | N89: 0.1650557904 | S89: 0.1650557904 | T89: 0.05189747604 | U89: 0.05272275499 | AC89: 7.8 | AD89: 0 | AE89: 1 | AF89: 0 | AH89: 2.6 | AI89: 0
F90: 0.79 | G90: 0.2548387097 | H90: -9.716368544 | I90: 11.32151453 | L90: -11.2484725 | M90: 24.88298461 | N90: 0.1681809857 | S90: 0.1681809857 | T90: 0.05356365992 | U90: 0.05440456485 | AC90: 7.9 | AD90: 0 | AE90: 1 | AF90: 0 | AH90: 2.7 | AI90: 0.2867744301
E91: =S91 -> 0.1713240978 | F91: 0.8 | G91: 0.2580645161 | H91: -9.686370185 | I91: 11.32151453 | L91: -11.19977781 | M91: 24.83428993 | N91: 0.1713240978 | S91: 0.1713240978 | T91: 0.05526118534 | U91: 0.05611780583 | AC91: 8 | AD91: 0 | AE91: 1 | AF91: 0 | AH91: 2.8 | AI91: 0
F92: 0.81 | G92: 0.2612903226 | H92: -9.656202265 | I92: 11.32151453 | L92: -11.15108312 | M92: 24.78559524 | N92: 0.1744849757 | S92: 0.1744849757 | T92: 0.05699023071 | U92: 0.05786265558 | AC92: 8.1 | AD92: 0 | AE92: 1 | AF92: 0 | AH92: 2.7 | AI92: 0
F93: 0.82 | G93: 0.264516129 | H93: -9.625866201 | I93: 11.32151453 | L93: -11.10238844 | M93: 24.73690055 | N93: 0.1776634711 | S93: 0.1776634711 | T93: 0.05875097294 | U93: 0.0596392903 | AC93: 8.2 | AD93: 0 | AE93: 1 | AF93: 0 | AH93: 2.8 | AI93: 0.257921019
F94: 0.83 | G94: 0.2677419355 | H94: -9.595363388 | I94: 11.32151453 | L94: -11.05369375 | M94: 24.68820587 | N94: 0.1808594378 | S94: 0.1808594378 | T94: 0.06054358748 | U94: 0.06144788467 | AC94: 8.3 | AD94: 0 | AE94: 1 | AF94: 0 | AH94: 2.9 | AI94: 0
F95: 0.84 | G95: 0.2709677419 | H95: -9.564695196 | I95: 11.32151453 | L95: -11.00499907 | M95: 24.63951118 | N95: 0.1840727323 | S95: 0.1840727323 | T95: 0.06236824834 | U95: 0.063288612 | AC95: 8.4 | AD95: 0 | AE95: 1 | AF95: 0 | AH95: 2.8 | AI95: 0
F96: 0.85 | G96: 0.2741935484 | H96: -9.533862976 | I96: 11.32151453 | L96: -10.95630438 | M96: 24.5908165 | N96: 0.187303213 | S96: 0.187303213 | T96: 0.06422512806 | U96: 0.06516164413 | AC96: 8.5 | AD96: 0 | AE96: 1 | AF96: 0 | AH96: 2.9 | AI96: 0.2348529044
F97: 0.86 | G97: 0.2774193548 | H97: -9.502868057 | I97: 11.32151453 | L97: -10.90760969 | M97: 24.54212181 | N97: 0.1905507408 | S97: 0.1905507408 | T97: 0.06611439783 | U97: 0.06706715153 | AC97: 8.6 | AD97: 0 | AE97: 1 | AF97: 0 | AH97: 3 | AI97: 0
F98: 0.87 | G98: 0.2806451613 | H98: -9.471711746 | I98: 11.32151453 | L98: -10.85891501 | M98: 24.49342712 | N98: 0.1938151785 | S98: 0.1938151785 | T98: 0.06803622743 | U98: 0.06900530332 | AH98: 2.9 | AI98: 0
F99: 0.88 | G99: 0.2838709677 | H99: -9.440395333 | I99: 11.32151453 | L99: -10.81022032 | M99: 24.44473244 | N99: 0.197096391 | S99: 0.197096391 | T99: 0.06999078527 | U99: 0.07097626723 | AH99: 3 | AI99: 0.2162447715
F100: 0.89 | G100: 0.2870967742 | H100: -9.408920088 | I100: 11.32151453 | L100: -10.76152563 | M100: 24.39603775 | N100: 0.2003942454 | S100: 0.2003942454 | T100: 0.07197823846 | U100: 0.07298020968 | AH100: 3.1 | AI100: 0
F101: 0.9 | G101: 0.2903225806 | H101: -9.377287261 | I101: 11.32151453 | L101: -10.71283095 | M101: 24.34734307 | N101: 0.2037086106 | S101: 0.2037086106 | T101: 0.07399875274 | U101: 0.07501729579 | AH101: 3 | AI101: 0
F102: 0.91 | G102: 0.2935483871 | H102: -9.345498086 | I102: 11.32151453 | L102: -10.66413626 | M102: 24.29864838 | N102: 0.2070393575 | S102: 0.2070393575 | T102: 0.07605249258 | U102: 0.07708768937 | AH102: 3.1 | AI102: 0.1998540256
F103: 0.92 | G103: 0.2967741935 | H103: -9.313553777 | I103: 11.32151453 | L103: -10.61544158 | M103: 24.24995369 | N103: 0.2103863585 | S103: 0.2103863585 | T103: 0.07813962116 | U103: 0.07919155295 | AH103: 3.2 | AI103: 0
F104: 0.93 | G104: 0.3 | H104: -9.281455533 | I104: 11.32151453 | L104: -10.56674689 | M104: 24.20125901 | N104: 0.2137494884 | S104: 0.2137494884 | T104: 0.08026030039 | U104: 0.08132904783 | AH104: 3.1 | AI104: 0
F105: 0.94 | G105: 0.3032258065 | H105: -9.249204535 | I105: 11.32151453 | L105: -10.5180522 | M105: 24.15256432 | N105: 0.2171286232 | S105: 0.2171286232 | T105: 0.08241469095 | U105: 0.08350033407 | AH105: 3.2 | AI105: 0.1848371135
F106: 0.95 | G106: 0.3064516129 | H106: -9.216801948 | I106: 11.32151453 | L106: -10.46935752 | M106: 24.10386963 | N106: 0.2205236408 | S106: 0.2205236408 | T106: 0.08460295227 | U106: 0.08570557047 | AH106: 3.3 | AI106: 0
F107: 0.96 | G107: 0.3096774194 | H107: -9.184248922 | I107: 11.32151453 | L107: -10.42066283 | M107: 24.05517495 | N107: 0.2239344209 | S107: 0.2239344209 | T107: 0.08682524258 | U107: 0.08794491468 | AH107: 3.2 | AI107: 0
F108: 0.97 | G108: 0.3129032258 | H108: -9.151546591 | I108: 11.32151453 | L108: -10.37196815 | M108: 24.00648026 | N108: 0.2273608447 | S108: 0.2273608447 | T108: 0.08908171891 | U108: 0.09021852313 | AH108: 3.3 | AI108: 0.1707728933
F109: 0.98 | G109: 0.3161290323 | H109: -9.118696074 | I109: 11.32151453 | L109: -10.32327346 | M109: 23.95778558 | N109: 0.2308027948 | S109: 0.2308027948 | T109: 0.0913725371 | U109: 0.09252655108 | AH109: 3.4 | AI109: 0
F110: 0.99 | G110: 0.3193548387 | H110: -9.085698475 | I110: 11.32151453 | L110: -10.27457877 | M110: 23.90909089 | N110: 0.2342601555 | S110: 0.2342601555 | T110: 0.09369785186 | U110: 0.09486915263 | AH110: 3.3 | AI110: 0
F111: 1 | G111: 0.3225806452 | H111: -9.052554885 | I111: 11.32151453 | L111: -10.22588409 | M111: 23.8603962 | N111: 0.2377328126 | S111: 0.2377328126 | T111: 0.0960578167 | U111: 0.09724648076 | AH111: 3.4 | AI111: 0.1574389757
F112: 1.01 | G112: 0.3258064516 | H112: -9.01926638 | I112: 11.32151453 | L112: -10.1771894 | M112: 23.81170152 | N112: 0.2412206534 | S112: 0.2412206534 | T112: 0.09845258403 | U112: 0.09965868729 | AH112: 3.5 | AI112: 0
F113: 1.02 | G113: 0.3290322581 | H113: -8.985834023 | I113: 11.32151453 | L113: -10.12849472 | M113: 23.76300683 | N113: 0.2447235664 | S113: 0.2447235664 | T113: 0.1008823051 | U113: 0.102105923 | AH113: 3.4 | AI113: 0
F114: 1.03 | G114: 0.3322580645 | H114: -8.952258864 | I114: 11.32151453 | L114: -10.07980003 | M114: 23.71431215 | N114: 0.2482414417 | S114: 0.2482414417 | T114: 0.1033471302 | U114: 0.1045883374 | AH114: 3.5 | AI114: 0.1446937113
F115: 1.04 | G115: 0.335483871 | H115: -8.91854194 | I115: 11.32151453 | L115: -10.03110534 | M115: 23.66561746 | N115: 0.2517741706 | S115: 0.2517741706 | T115: 0.1058472082 | U115: 0.1071060791 | AH115: 3.6 | AI115: 0
F116: 1.05 | G116: 0.3387096774 | H116: -8.884684274 | I116: 11.32151453 | L116: -9.982410657 | M116: 23.61692277 | N116: 0.2553216458 | S116: 0.2553216458 | T116: 0.1083826873 | U116: 0.1096592955 | AH116: 3.5 | AI116: 0
F117: 1.06 | G117: 0.3419354839 | H117: -8.85068688 | I117: 11.32151453 | L117: -9.933715971 | M117: 23.56822809 | N117: 0.2588837612 | S117: 0.2588837612 | T117: 0.1109537143 | U117: 0.1122481332 | AH117: 3.6 | AI117: 0.132445188
F118: 1.07 | G118: 0.3451612903 | H118: -8.816550758 | I118: 11.32151453 | L118: -9.885021285 | M118: 23.5195334 | N118: 0.262460412 | S118: 0.262460412 | T118: 0.1135604352 | U118: 0.1148727373 | AH118: 3.7 | AI118: 0
F119: 1.08 | G119: 0.3483870968 | H119: -8.782276896 | I119: 11.32151453 | L119: -9.836326598 | M119: 23.47083871 | N119: 0.2660514946 | S119: 0.2660514946 | T119: 0.1162029947 | U119: 0.1175332522 | AH119: 3.6 | AI119: 0
F120: 1.09 | G120: 0.3516129032 | H120: -8.747866272 | I120: 11.32151453 | L120: -9.787631912 | M120: 23.42214403 | N120: 0.2696569067 | S120: 0.2696569067 | T120: 0.1188815368 | U120: 0.1202298213 | AH120: 3.7 | AI120: 0.1206348962
F121: 1.1 | G121: 0.3548387097 | H121: -8.713319852 | I121: 11.32151453 | L121: -9.738937226 | M121: 23.37344934 | N121: 0.273276547 | S121: 0.273276547 | T121: 0.121596204 | U121: 0.1229625868 | AH121: 3.8 | AI121: 0
F122: 1.11 | G122: 0.3580645161 | H122: -8.67863859 | I122: 11.32151453 | L122: -9.69024254 | M122: 23.32475466 | N122: 0.2769103154 | S122: 0.2769103154 | T122: 0.1243471383 | U122: 0.1257316899 | AH122: 3.7 | AI122: 0
F123: 1.12 | G123: 0.3612903226 | H123: -8.643823433 | I123: 11.32151453 | L123: -9.641547854 | M123: 23.27605997 | N123: 0.2805581129 | S123: 0.2805581129 | T123: 0.1271344805 | U123: 0.128537271 | AH123: 3.8 | AI123: 0.1092283985
F124: 1.13 | G124: 0.364516129 | H124: -8.608875314 | I124: 11.32151453 | L124: -9.592853168 | M124: 23.22736528 | N124: 0.2842198416 | S124: 0.2842198416 | T124: 0.1299583702 | U124: 0.1313794695 | AH124: 3.9 | AI124: 0
F125: 1.14 | G125: 0.3677419355 | H125: -8.573795157 | I125: 11.32151453 | L125: -9.544158482 | M125: 23.1786706 | N125: 0.2878954046 | S125: 0.2878954046 | T125: 0.1328189465 | U125: 0.1342584235 | AH125: 3.8 | AI125: 0
F126: 1.15 | G126: 0.3709677419 | H126: -8.538583878 | I126: 11.32151453 | L126: -9.495463795 | M126: 23.12997591 | N126: 0.2915847062 | S126: 0.2915847062 | T126: 0.135716347 | U126: 0.1371742706 | AH126: 3.9 | AI126: 0.09820980028
F127: 1.16 | G127: 0.3741935484 | H127: -8.503242381 | I127: 11.32151453 | L127: -9.446769109 | M127: 23.08128123 | N127: 0.2952876516 | S127: 0.2952876516 | T127: 0.1386507088 | U127: 0.1401271471 | AH127: 4 | AI127: 0
F128: 1.17 | G128: 0.3774193548 | H128: -8.467771561 | I128: 11.32151453 | L128: -9.398074423 | M128: 23.03258654 | N128: 0.2990041468 | S128: 0.2990041468 | T128: 0.1416221678 | U128: 0.1431171885 | AH128: 3.9 | AI128: 0
F129: 1.18 | G129: 0.3806451613 | H129: -8.432172305 | I129: 11.32151453 | L129: -9.349379737 | M129: 22.98389185 | N129: 0.3027340992 | S129: 0.3027340992 | T129: 0.144630859 | U129: 0.1461445295 | AH129: 4 | AI129: 0.08757854476
F130: 1.19 | G130: 0.3838709677 | H130: -8.39644549 | I130: 11.32151453 | L130: -9.300685051 | M130: 22.93519717 | N130: 0.3064774167 | S130: 0.3064774167 | T130: 0.1476769166 | U130: 0.1492093037 | AH130: 4.1 | AI130: 0
F131: 1.2 | G131: 0.3870967742 | H131: -8.360591983 | I131: 11.32151453 | L131: -9.251990365 | M131: 22.88650248 | N131: 0.3102340084 | S131: 0.3102340084 | T131: 0.1507604737 | U131: 0.1523116438 | AH131: 4 | AI131: 0
F132: 1.21 | G132: 0.3903225806 | H132: -8.324612645 | I132: 11.32151453 | L132: -9.203295679 | M132: 22.8378078 | N132: 0.3140037842 | S132: 0.3140037842 | T132: 0.1538816627 | U132: 0.1554516816 | AH132: 4.1 | AI132: 0.07734787403
F133: 1.22 | G133: 0.3935483871 | H133: -8.288508327 | I133: 11.32151453 | L133: -9.154600993 | M133: 22.78911311 | N133: 0.3177866549 | S133: 0.3177866549 | T133: 0.1570406149 | U133: 0.1586295482 | AH133: 4.2 | AI133: 0
F134: 1.23 | G134: 0.3967741935 | H134: -8.252279873 | I134: 11.32151453 | L134: -9.105906306 | M134: 22.74041842 | N134: 0.3215825323 | S134: 0.3215825323 | T134: 0.1602374608 | U134: 0.1618453735 | AH134: 4.1 | AI134: 0
F135: 1.24 | G135: 0.4 | H135: -8.215928116 | I135: 11.32151453 | L135: -9.05721162 | M135: 22.69172374 | N135: 0.3253913287 | S135: 0.3253913287 | T135: 0.1634723301 | U135: 0.1650992868 | AH135: 4.2 | AI135: 0.06754480826
F136: 1.25 | G136: 0.4032258065 | H136: -8.179453884 | I136: 11.32151453 | L136: -9.008516934 | M136: 22.64302905 | N136: 0.3292129576 | S136: 0.3292129576 | T136: 0.1667453516 | U136: 0.1683914164 | AH136: 4.3 | AI136: 0
F137: 1.26 | G137: 0.4064516129 | H137: -8.142857996 | I137: 11.32151453 | L137: -8.959822248 | M137: 22.59433436 | N137: 0.3330473332 | S137: 0.3330473332 | T137: 0.170056653 | U137: 0.1717218897 | AH137: 4.2 | AI137: 0
F138: 1.27 | G138: 0.4096774194 | H138: -8.106141263 | I138: 11.32151453 | L138: -8.911127562 | M138: 22.54563968 | N138: 0.3368943703 | S138: 0.3368943703 | T138: 0.1734063615 | U138: 0.1750908334 | AH138: 4.3 | AI138: 0.05821210012
F139: 1.28 | G139: =F139/$C$7 -> 0.4129032258 | H139: =(0.5*F139+0.25*$C$7)*(F139*($C$7-F139))^0.5+(F139*$C$7-$C$7^2)*ASIN((F139/$C$7)^0.5)-0.75*$C$7^2*ATAN((($C$7-F139)/F139)^0.5) -> -8.069304491 | I139: =3/8*PI()*$C$7^2 -> 11.32151453 | J139: =($C$6-F139-0.5*$C$7)*((F139-$C$6)*($C$7-F139+$C$6))^0.5+$C$7*(2*$C$7-2*F139+2*$C$6)*ASIN(((F139-$C$6)/$C$7)^0.5)+1.5*$C$7^2*ATAN((($C$7-F139+$C$6)/(F139-$C$6))^0.5) ->  | K139: =(-$C$6+0.5*F139+0.25*$C$7)*((F139-2*$C$6)*($C$7-F139+2*$C$6))^0.5+$C$7*(-$C$7+F139-2*$C$6)*ASIN(((F139-2*$C$6)/$C$7)^0.5)-0.75*$C$7^2*ATAN((($C$7-F139+2*$C$6)/(F139-2*$C$6))^0.5) ->  | L139: =PI()/2*$C$7*(F139-$C$7) -> -8.862432876 | M139: =PI()/2*$C$7*(2*$C$6-F139+$C$7) -> 22.49694499 | N139: =$C$8*(H139+I139) -> 0.3407539848 | O139: =$C$8*(H139-I139+J139) ->  | P139: =$C$8*(H139+J139+K139) ->  | Q139: =$C$8*(L139+J139+K139) ->  | R139: =$C$8*(K139+M139) ->  | S139: =IF(F139>0,IF(F139>$C$6,IF(F139>(2*$C$6),IF(F139>$C$7,IF(F139>($C$6+$C$7),IF(F139>($C$7+2*$C$6),0,R139),Q139),P139),O139),N139),0) -> 0.3407539848 | T139: 0.1767946033 | U139: 0.1784983732 | AH139: 4.4 | AI139: 0
F140: 1.29 | G140: 0.4161290323 | H140: -8.032348476 | I140: 11.32151453 | L140: -8.81373819 | M140: 22.44825031 | N140: 0.3446260931 | S140: 0.3446260931 | T140: =T139+(S140+S139)*(F140-F139)/2 -> 0.1802215037 | U140: =U139+S140*0.01 -> 0.1819446342 | AH140: 4.3 | AI140: 0
F141: =F140+0.01 -> 1.3 | G141: 0.4193548387 | H141: -7.995274008 | I141: 11.32151453 | L141: -8.765043504 | M141: 22.39955562 | N141: 0.3485106124 | S141: 0.3485106124 | T141: 0.1836871872 | U141: 0.1854297403 | AH141: 4.4 | AI141: 0.04941412662
F142: 1.31 | G142: 0.4225806452 | H142: -7.958081869 | I142: 11.32151453 | L142: -8.716348817 | M142: 22.35086093 | N142: 0.3524074608 | S142: 0.3524074608 | T142: 0.1871917776 | U142: 0.1889538149 | AH142: 4.5 | AI142: 0
F143: 1.32 | G143: 0.4258064516 | H143: -7.920772837 | I143: 11.32151453 | L143: -8.667654131 | M143: 22.30216625 | N143: 0.3563165569 | S143: 0.3563165569 | T143: 0.1907353977 | U143: 0.1925169805 | AH143: 4.4 | AI143: 0
F144: 1.33 | G144: 0.4290322581 | H144: -7.883347679 | I144: 11.32151453 | L144: -8.618959445 | M144: 22.25347156 | N144: 0.3602378201 | S144: 0.3602378201 | T144: 0.1943181696 | U144: 0.1961193587 | AH144: 4.5 | AI144: 0.04125729441
F145: 1.34 | G145: 0.4322580645 | H145: -7.84580716 | I145: 11.32151453 | L145: -8.570264759 | M145: 22.20477688 | N145: 0.3641711705 | S145: 0.3641711705 | T145: 0.1979402145 | U145: 0.1997610704 | AH145: 4.6 | AI145: 0
F146: 1.35 | G146: 0.435483871 | H146: -7.808152034 | I146: 11.32151453 | L146: -8.521570073 | M146: 22.15608219 | N146: 0.3681165288 | S146: 0.3681165288 | T146: 0.201601653 | U146: 0.2034422357 | AH146: 4.5 | AI146: 0
F147: 1.36 | G147: 0.4387096774 | H147: -7.770383054 | I147: 11.32151453 | L147: -8.472875387 | M147: 22.1073875 | N147: 0.3720738165 | S147: 0.3720738165 | T147: 0.2053026048 | U147: 0.2071629738 | AH147: 4.6 | AI147: 0.03395049363
F148: 1.37 | G148: 0.4419354839 | H148: -7.732500961 | I148: 11.32151453 | L148: -8.424180701 | M148: 22.05869282 | N148: 0.3760429556 | S148: 0.3760429556 | T148: 0.2090431886 | U148: 0.2109234034 | AH148: 4.7 | AI148: 0
F149: 1.38 | G149: 0.4451612903 | H149: -7.694506495 | I149: 11.32151453 | L149: -8.375486014 | M149: 22.00999813 | N149: 0.3800238687 | S149: 0.3800238687 | T149: 0.2128235227 | U149: 0.2147236421 | AH149: 4.6 | AI149: 0
F150: 1.39 | G150: 0.4483870968 | H150: -7.656400388 | I150: 11.32151453 | L150: -8.326791328 | M150: 21.96130344 | N150: 0.3840164793 | S150: 0.3840164793 | T150: 0.2166437245 | U150: 0.2185638069 | AH150: 4.7 | AI150: 0.02753433948
F151: 1.4 | G151: 0.4516129032 | H151: -7.618183364 | I151: 11.32151453 | J151: 22.64302905 | L151: -8.278096642 | M151: 21.91260876 | N151: 0.3880207111 | O151: 0.3880207111 | S151: 0.3880207111 | T151: 0.2205039104 | U151: 0.222444014 | AH151: 4.8 | AI151: 0
F152: 1.41 | G152: 0.4548387097 | H152: -7.579856146 | I152: 11.32151453 | J152: 22.63833541 | L152: -8.229401956 | M152: 21.86391407 | N152: 0.3920364888 | O152: 0.3915447077 | S152: 0.3915447077 | T152: 0.2244017375 | U152: 0.2263594611 | AH152: 4.7 | AI152: 0
F153: 1.42 | G153: 0.4580645161 | H153: -7.541419447 | I153: 11.32151453 | J153: 22.62975773 | L153: -8.18070727 | M153: 21.81521939 | N153: 0.3960637373 | O153: 0.3946732199 | S153: 0.3946732199 | T153: 0.2283328272 | U153: 0.2303061933 | AH153: 4.8 | AI153: 0.02195103757
F154: 1.43 | G154: 0.4612903226 | H154: -7.502873978 | I154: 11.32151453 | J154: 22.61865596 | L154: -8.132012584 | M154: 21.7665247 | N154: 0.4001023825 | O154: 0.3975486648 | S154: 0.3975486648 | T154: 0.2322939366 | U154: 0.2342816799 | AH154: 4.9 | AI154: 0
F155: 1.44 | G155: 0.464516129 | H155: -7.464220442 | I155: 11.32151453 | J155: 22.60551637 | L155: -8.083317898 | M155: 21.71783001 | N155: 0.4041523505 | O155: 0.4002219174 | S155: 0.4002219174 | T155: 0.2362827895 | U155: 0.2382838991 | AH155: 4.8 | AI155: 0
F156: 1.45 | G156: 0.4677419355 | H156: -7.425459538 | I156: 11.32151453 | J156: 22.59062048 | L156: -8.034623212 | M156: 21.66913533 | N156: 0.408213568 | O156: 0.4027224006 | S156: 0.4027224006 | T156: 0.2402975111 | U156: 0.2423111231 | AH156: 4.9 | AI156: 0.01714491108
F157: 1.46 | G157: 0.4709677419 | H157: -7.38659196 | I157: 11.32151453 | J157: 22.57415854 | L157: -7.985928525 | M157: 21.62044064 | N157: 0.4122859625 | O157: 0.4050699767 | S157: 0.4050699767 | T157: 0.244336473 | U157: 0.2463618229 | AH157: 5 | AI157: 0
F158: 1.47 | G158: 0.4741935484 | H158: -7.347618396 | I158: 11.32151453 | J158: 22.55627046 | L158: -7.937233839 | M158: 21.57174596 | N158: 0.4163694617 | O158: 0.4072792326 | S158: 0.4072792326 | T158: 0.248398219 | U158: 0.2504346152 | AH158: 4.9 | AI158: 0
F159: 1.48 | G159: 0.4774193548 | H159: -7.30853953 | I159: 11.32151453 | J159: 22.53706484 | L159: -7.888539153 | M159: 21.52305127 | N159: 0.4204639941 | O159: 0.4093614737 | S159: 0.4093614737 | T159: 0.2524814226 | U159: 0.2545282299 | AH159: 5 | AI159: 0.01306190388
F160: 1.49 | G160: 0.4806451613 | H160: -7.26935604 | I160: 11.32151453 | J160: 22.51662916 | L160: -7.839844467 | M160: 21.47435658 | N160: 0.4245694885 | O160: 0.4113257973 | S160: 0.4113257973 | T160: 0.2565848589 | U160: 0.2586414879 | AH160: 5.1 | AI160: 0
F161: 1.5 | G161: 0.4838709677 | H161: -7.230068602 | I161: 11.32151453 | J161: 22.49503595 | L161: -7.791149781 | M161: 21.4256619 | N161: 0.4286858744 | O161: 0.4131797301 | S161: 0.4131797301 | T161: 0.2607073865 | U161: 0.2627732852 | AH161: 5 | AI161: 0
F162: 1.51 | G162: 0.4870967742 | H162: -7.190677883 | I162: 11.32151453 | J162: 22.47234659 | L162: -7.742455095 | M162: 21.37696721 | N162: 0.4328130814 | O162: 0.4149296341 | S162: 0.4149296341 | T162: 0.2648479334 | U162: 0.2669225815 | AH162: 5.1 | AI162: 0.009649102143
F163: 1.52 | G163: 0.4903225806 | H163: -7.15118455 | I163: 11.32151453 | J163: 22.44861396 | L163: -7.693760409 | M163: 21.32827253 | N163: 0.4369510401 | O163: 0.4165809792 | S163: 0.4165809792 | T163: 0.2690054864 | U163: 0.2710883913 | AH163: 5.2 | AI163: 0
F164: 1.53 | G164: 0.4935483871 | H164: -7.111589261 | I164: 11.32151453 | J164: 22.42388422 | L164: -7.645065723 | M164: 21.27957784 | N164: 0.4410996813 | O164: 0.4181385339 | S164: 0.4181385339 | T164: 0.273179084 | U164: 0.2752697767 | AH164: 5.1 | AI164: 0
F165: 1.54 | G165: 0.4967741935 | H165: -7.071892673 | I165: 11.32151453 | J165: 22.39819816 | L165: -7.596371036 | M165: 21.23088315 | N165: 0.4452589362 | O165: 0.4196065031 | S165: 0.4196065031 | T165: 0.2773678092 | U165: 0.2794658417 | AH165: 5.2 | AI165: 0.006854247871
F166: 1.55 | G166: 0.5 | H166: -7.032095438 | I166: 11.32151453 | J166: 22.37159218 | L166: -7.54767635 | M166: 21.18218847 | N166: 0.4494287365 | O166: 0.4209886311 | S166: 0.4209886311 | T166: 0.2815707849 | U166: 0.283675728 | AH166: 5.3 | AI166: 0
F167: 1.56 | G167: 0.5032258065 | H167: -6.992198202 | I167: 11.32151453 | J167: 22.34409899 | L167: -7.498981664 | M167: 21.13349378 | N167: 0.4536090145 | O167: 0.4222882796 | S167: 0.4222882796 | T167: 0.2857871694 | U167: 0.2878986108 | AH167: 5.2 | AI167: 0
F168: 1.57 | G168: 0.5064516129 | H168: -6.952201609 | I168: 11.32151453 | J168: 22.31574827 | L168: -7.450286978 | M168: 21.08479909 | N168: 0.4577997028 | O168: 0.4235084888 | S168: 0.4235084888 | T168: 0.2900161532 | U168: 0.2921336957 | AH168: 5.3 | AI168: 0.004625210092
F169: 1.58 | G169: 0.5096774194 | H169: -6.912106298 | I169: 11.32151453 | J169: 22.28656705 | L169: -7.401592292 | M169: 21.03610441 | N169: 0.4620007344 | O169: 0.4246520254 | S169: 0.4246520254 | T169: 0.2942569558 | U169: 0.2963802159 | AH169: 5.4 | AI169: 0
F170: 1.59 | G170: 0.5129032258 | H170: -6.871912904 | I170: 11.32151453 | J170: 22.25658014 | L170: -7.352897606 | M170: 20.98740972 | N170: 0.4662120427 | O170: 0.4257214207 | S170: 0.4257214207 | T170: 0.298508823 | U170: 0.3006374302 | AH170: 5.3 | AI170: 0
F171: 1.6 | G171: 0.5161290323 | H171: -6.831622057 | I171: 11.32151453 | J171: 22.22581037 | L171: -7.30420292 | M171: 20.93871504 | N171: 0.4704335617 | O171: 0.4267190029 | S171: 0.4267190029 | T171: 0.3027710252 | U171: 0.3049046202 | AH171: 5.4 | AI171: 0.002909364464
F172: 1.61 | G172: 0.5193548387 | H172: -6.791234386 | I172: 11.32151453 | J172: 22.19427891 | L172: -7.255508233 | M172: 20.89002035 | N172: 0.4746652257 | O172: 0.4276469218 | S172: 0.4276469218 | T172: 0.3070428548 | U172: 0.3091810894 | AH172: 5.5 | AI172: 0
F173: 1.62 | G173: 0.5225806452 | H173: -6.750750513 | I173: 11.32151453 | J173: 22.16200539 | L173: -7.206813547 | M173: 20.84132566 | N173: 0.4789069693 | O173: 0.4285071711 | S173: 0.4285071711 | T173: 0.3113236253 | U173: 0.3134661611 | AH173: 5.4 | AI173: 0
F174: 1.63 | G174: 0.5258064516 | H174: -6.710171058 | I174: 11.32151453 | J174: 22.12900815 | L174: -7.158118861 | M174: 20.79263098 | N174: 0.4831587275 | O174: 0.4293016059 | S174: 0.4293016059 | T174: 0.3156126691 | U174: 0.3177591772 | AH174: 5.5 | AI174: 0.001652797768
F175: 1.64 | G175: 0.5290322581 | H175: -6.669496638 | I175: 11.32151453 | J175: 22.09530432 | L175: -7.109424175 | M175: 20.74393629 | N175: 0.4874204359 | O175: 0.4300319582 | S175: 0.4300319582 | T175: 0.319909337 | U175: 0.3220594968 | AH175: 5.6 | AI175: 0
F176: 1.65 | G176: 0.5322580645 | H176: -6.628727865 | I176: 11.32151453 | J176: 22.06091001 | L176: -7.060729489 | M176: 20.69524161 | N176: 0.4916920302 | O176: 0.4306998496 | S176: 0.4306998496 | T176: 0.324212996 | U176: 0.3263664952 | AH176: 5.5 | AI176: 0
F177: 1.66 | G177: 0.535483871 | H177: -6.587865348 | I177: 11.32151453 | J177: 22.02584035 | L177: -7.012034803 | M177: 20.64654692 | N177: 0.4959734467 | O177: 0.4313068028 | S177: 0.4313068028 | T177: 0.3285230293 | U177: 0.3306795633 | AH177: 5.6 | AI177: 0.0007991759172
F178: 1.67 | G178: 0.5387096774 | H178: -6.546909692 | I178: 11.32151453 | J178: 21.99010963 | L178: -6.963340117 | M178: 20.59785223 | N178: 0.5002646218 | O178: 0.4318542506 | S178: 0.4318542506 | T178: 0.3328388345 | U178: 0.3349981058 | AH178: 5.7 | AI178: 0
F179: 1.68 | G179: 0.5419354839 | H179: -6.505861501 | I179: 11.32151453 | J179: 21.95373134 | L179: -6.914645431 | M179: 20.54915755 | N179: 0.5045654925 | O179: 0.432343545 | S179: 0.432343545 | T179: 0.3371598235 | U179: 0.3393215412 | AH179: 5.6 | AI179: 0
F180: 1.69 | G180: 0.5451612903 | H180: -6.464721372 | I180: 11.32151453 | J180: 21.91671829 | L180: -6.865950744 | M180: 20.50046286 | N180: 0.508875996 | O180: 0.4327759641 | S180: 0.4327759641 | T180: 0.3414854211 | U180: 0.3436493009 | AH180: 5.7 | AI180: 0.0002879075248
F181: 1.7 | G181: 0.5483870968 | H181: -6.423489902 | I181: 11.32151453 | J181: 21.87908262 | L181: -6.817256058 | M181: 20.45176817 | N181: 0.5131960699 | O181: 0.4331527186 | S181: 0.4331527186 | T181: 0.3458150645 | U181: 0.3479808281 | AH181: 5.8 | AI181: 0
F182: 1.71 | G182: 0.5516129032 | H182: -6.382167683 | I182: 11.32151453 | J182: 21.8408359 | L182: -6.768561372 | M182: 20.40307349 | N182: 0.5175256521 | O182: 0.4334749573 | S182: 0.4334749573 | T182: 0.3501482028 | U182: 0.3523155776 | AH182: 5.7 | AI182: 0
F183: 1.72 | G183: 0.5548387097 | H183: -6.340755305 | I183: 11.32151453 | J183: 21.80198914 | L183: -6.719866686 | M183: 20.3543788 | N183: 0.5218646809 | O183: 0.4337437726 | S183: 0.4337437726 | T183: 0.3544842965 | U183: 0.3566530154 | AH183: 5.8 | AI183: 5.053388885e-05
F184: 1.73 | G184: 0.5580645161 | H184: -6.299253354 | I184: 11.32151453 | J184: 21.76255284 | L184: -6.671172 | M184: 20.30568412 | N184: 0.5262130948 | O184: 0.4339602043 | S184: 0.4339602043 | T184: 0.3588228164 | U184: 0.3609926174 | AH184: 5.9 | AI184: 0
F185: 1.74 | G185: 0.5612903226 | H185: -6.257662414 | I185: 11.32151453 | J185: 21.72253707 | L185: -6.622477314 | M185: 20.25698943 | N185: 0.5305708326 | O185: 0.4341252441 | S185: 0.4341252441 | T185: 0.3631632436 | U185: 0.3653338698 | AH185: 5.8 | AI185: 0
F186: 1.75 | G186: 0.564516129 | H186: -6.215983064 | I186: 11.32151453 | J186: 21.68195143 | L186: -6.573782628 | M186: 20.20829474 | N186: 0.5349378335 | O186: 0.434239839 | S186: 0.434239839 | T186: 0.367505069 | U186: 0.3696762682 | AH186: 5.9 | AI186: -2.50508493e-23
F187: 1.76 | G187: 0.5677419355 | H187: -6.174215884 | I187: 11.32151453 | J187: 21.64080515 | L187: -6.525087942 | M187: 20.15960006 | N187: 0.5393140371 | O187: 0.4343048945 | S187: 0.4343048945 | T187: 0.3718477927 | U187: 0.3740193172 | AH187: 6 | AI187: 0
F188: 1.77 | G188: 0.5709677419 | H188: -6.132361447 | I188: 11.32151453 | J188: 21.59910708 | L188: -6.476393255 | M188: 20.11090537 | N188: 0.5436993831 | O188: 0.4343212777 | S188: 0.4343212777 | T188: 0.3761909236 | U188: 0.37836253 | AH188: 5.9 | AI188: 0
F189: 1.78 | G189: 0.5741935484 | H189: -6.090420325 | I189: 11.32151453 | J189: 21.55686571 | L189: -6.427698569 | M189: 20.06221069 | N189: 0.5480938115 | O189: 0.4342898194 | S189: 0.4342898194 | T189: 0.380533979 | U189: 0.3827054281 | AH189: 6 | AI189: 0
F190: 1.79 | G190: 0.5774193548 | H190: -6.048393089 | I190: 11.32151453 | J190: 21.51408924 | L190: -6.379003883 | M190: 20.013516 | N190: 0.5524972627 | O190: 0.4342113171 | S190: 0.4342113171 | T190: 0.3848764847 | U190: 0.3870475413 | AH190: 6.1 | AI190: 0
F191: 1.8 | G191: 0.5806451613 | H191: -6.006280305 | I191: 11.32151453 | J191: 21.47078553 | L191: -6.330309197 | M191: 19.96482131 | N191: 0.5569096773 | O191: 0.434086537 | S191: 0.434086537 | T191: 0.389217974 | U191: 0.3913884067 | AH191: 6 | AI191: 0
F192: 1.81 | G192: 0.5838709677 | H192: -5.964082537 | I192: 11.32151453 | J192: 21.42696219 | L192: -6.281614511 | M192: 19.91612663 | N192: 0.5613309962 | O192: 0.4339162155 | S192: 0.4339162155 | T192: 0.3935579878 | U192: 0.3957275688 | AH192: 6.1 | AI192: 0
F193: 1.82 | G193: 0.5870967742 | H193: -5.921800347 | I193: 11.32151453 | J193: 21.38262654 | L193: -6.232919825 | M193: 19.86743194 | N193: 0.5657611605 | O193: 0.4337010616 | S193: 0.4337010616 | T193: 0.3978960741 | U193: 0.4000645795 | AH193: 6.2 | AI193: 0
F194: 1.83 | G194: 0.5903225806 | H194: -5.879434294 | I194: 11.32151453 | J194: 21.33778566 | L194: -6.184225139 | M194: 19.81873726 | N194: 0.5702001116 | O194: 0.4334417586 | S194: 0.4334417586 | T194: 0.4022317883 | U194: 0.404398997 | AH194: 6.1 | AI194: 0
F195: 1.84 | G195: 0.5935483871 | H195: -5.836984934 | I195: 11.32151453 | J195: 21.29244638 | L195: -6.135530452 | M195: 19.77004257 | N195: 0.5746477913 | O195: 0.4331389648 | S195: 0.4331389648 | T195: 0.4065646919 | U195: 0.4087303867 | AH195: 6.2 | AI195: 0
F196: 1.85 | G196: 0.5967741935 | H196: -5.794452823 | I196: 11.32151453 | J196: 21.24661535 | L196: -6.086835766 | M196: 19.72134788 | N196: 0.5791041413 | O196: 0.432793316 | S196: 0.432793316 | T196: 0.4108943533 | U196: 0.4130583199 | AH196: 6.3 | AI196: 0
F197: 1.86 | G197: 0.6 | H197: -5.751838512 | I197: 11.32151453 | J197: 21.20029895 | L197: -6.03814108 | M197: 19.6726532 | N197: 0.5835691039 | O197: 0.4324054259 | S197: 0.4324054259 | T197: 0.415220347 | U197: 0.4173823741 | AH197: 6.2 | AI197: 0
F198: 1.87 | G198: 0.6032258065 | H198: -5.709142552 | I198: 11.32151453 | J198: 21.15350341 | L198: -5.989446394 | M198: 19.62395851 | N198: 0.5880426215 | O198: 0.4319758877 | S198: 0.4319758877 | T198: 0.4195422535 | U198: 0.421702133 | AH198: 6.3 | AI198: 0
F199: 1.88 | G199: 0.6064516129 | H199: -5.666365489 | I199: 11.32151453 | J199: 21.10623475 | L199: -5.940751708 | M199: 19.57526382 | N199: 0.5925246367 | O199: 0.4315052753 | S199: 0.4315052753 | T199: 0.4238596594 | U199: 0.4260171857 | AH199: 6.4 | AI199: 0
F200: 1.89 | G200: 0.6096774194 | H200: -5.623507869 | I200: 11.32151453 | J200: 21.05849881 | L200: -5.892057022 | M200: 19.52656914 | N200: 0.5970150922 | O200: 0.430994144 | S200: 0.430994144 | T200: 0.4281721565 | U200: 0.4303271272 | AH200: 6.3 | AI200: 0
... 1254 more rows
